bitfinex-derivatives/quotes_ETHF0:USTF0_20251031
["timestamp","ask_amount","ask_price","bid_price","bid_amount"]
[1761923238777,0.00332833,3859.6,3859.5,3.57814205]
[1761923238978,0.00332833,3859.6,3859.5,4.04484205]
[1761923239777,0.00332833,3859.6,3859.5,3.57814205]
[1761923239979,0.00332833,3859.6,3859.5,4.04484205]
[1761923240683,0.00332833,3859.6,3859.5,3.57814205]
[1761923241196,0.00332833,3859.6,3859.5,0.37034205]
[1761923241387,0.00332833,3859.6,3859.5,0.23384205]
[1761923242289,0.00332833,3859.6,3859.5,0.37034205]
[1761923243084,2.833e-05,3859.6,3859.5,0.83705205]
[1761923243290,0.1391,3861.5,3860.0,1.3031]
[1761923243484,0.1394,3861.0,3860.8,3.2078]
[1761923243690,0.1391,3861.5,3861.4,0.1817]
[1761923244188,0.00262516,3861.5,3861.4,9.6707]
[1761923244985,0.37722516,3861.5,3860.9,3.2078]
[1761923245182,0.37722516,3861.5,3860.7,1.8444618]
[1761923245183,0.1394,3861.0,3860.7,9.488]
[1761923248188,0.1394,3861.0,3860.5,3.2078]
[1761923248385,0.1394,3861.0,3860.6,9.486]
[1761923249293,0.1394,3861.0,3860.9,0.1817]
[1761923249493,3.2078,3861.3,3860.9,0.1817]
[1761923249696,3.2078,3861.3,3861.2,0.1817]
[1761923251391,0.14202516,3861.5,3861.2,0.1817]
[1761923251788,0.2352,3861.3,3860.6,9.486]
[1761923251989,0.1394,3861.0,3860.6,9.486]
[1761923252186,0.2352,3860.7,3860.6,9.486]
[1761923254891,0.2352,3860.7,3860.1,9.483]
[1761923255295,3.2078,3860.9,3860.1,9.483]
[1761923257591,0.1394,3860.5,3860.1,9.483]
[1761923258498,0.1394,3860.5,3860.4,0.1817]
[1761923259693,0.1394,3860.5,3859.7,4.58890057]
[1761923259694,0.1397,3860.0,3859.7,4.58890057]
[1761923259897,3.3472,3860.5,3859.9,0.1815]
[1761923260399,3.3472,3860.5,3859.7,12.6868]
[1761923260400,0.2383,3859.8,3859.7,12.6868]
[1761923261106,3.4461,3859.8,3859.5,0.00274205]
[1761923261294,0.2383,3859.6,3859.5,0.00274205]
[1761923261493,0.1397,3858.5,3858.1,1.38110057]
[1761923261701,3.3475,3858.5,3858.1,9.478]
[1761923261899,0.2383,3858.2,3858.1,9.478]
[1761923262400,0.2383,3858.2,3858.1,0.00215564]
[1761923262401,0.2416306,3858.2,3858.1,0.00215564]
[1761923262902,0.2416306,3858.2,3856.8,1.38110057]
[1761923262903,0.1397,3857.5,3856.8,3.2078]
[1761923263700,0.1397,3857.5,3856.8,3.20972411]
[1761923264092,3.2078,3857.9,3857.4,0.1815]
[1761923266798,3.2078,3857.9,3857.2,12.6848]
[1761923269004,0.1397,3858.0,3857.2,12.6848]
[1761923269201,0.0033306,3858.2,3857.9,0.1815]
[1761923269506,0.0033306,3858.2,3857.9,9.478]
[1761923269507,0.1397,3858.0,3857.9,9.478]
[1761923270306,0.1397,3859.0,3857.9,9.478]
[1761923270307,0.1397,3860.0,3859.3,0.46672]
[1761923270513,0.1397,3860.0,3858.4,1.1671]
[1761923270514,0.1397,3860.5,3859.4,12.6848]
[1761923270807,0.1397,3859.8,3859.5,50.7437]
[1761923271005,0.1397,3859.8,3859.7,3.2078]
[1761923271215,0.1397,3859.8,3859.7,3.67448]
[1761923271414,0.2383,3859.4,3858.8,3.2078]
[1761923271616,0.2383,3859.4,3858.9,9.477]
[1761923271617,0.24067106,3859.4,3858.9,9.477]
[1761923271812,0.24067106,3859.4,3858.8,3.21004626]
[1761923271813,0.2383,3858.9,3858.8,0.00224626]
[1761923272406,0.00237106,3859.4,3858.8,3.21004626]
[1761923275014,0.00237106,3859.4,3859.2,3.2078]
[1761923275219,0.00237106,3859.4,3859.2,3.67454]
[1761923275611,0.00237106,3859.4,3859.2,3.2078]
[1761923277223,3.2078,3860.2,3859.2,3.2078]
[1761923277416,0.1397,3861.6,3860.7,0.46656]
[1761923277614,0.1397,3861.6,3860.8,10.05654]
[1761923277615,1e-08,3861.0,3860.8,10.05654]
[1761923277818,0.1397,3861.6,3860.9,12.8258]
[1761923278014,0.378,3861.6,3861.5,3.2078]
[1761923278215,0.38019552,3861.6,3860.9,3.2078]
[1761923278415,0.2383,3861.0,3860.9,3.2078]
[1761923278824,0.14189552,3861.6,3860.9,3.2078]
[1761923279121,0.14189552,3861.6,3861.3,3.2078]
[1761923280625,0.2383,3861.4,3861.3,3.2078]
[1761923280824,0.2383,3861.0,3860.9,3.2078]
[1761923281827,0.14189552,3861.6,3860.4,3.2078]
[1761923282019,0.2383,3860.5,3860.4,3.2078]
[1761923282215,3.2078,3861.3,3860.4,3.2078]
[1761923282419,0.14189552,3861.6,3860.9,3.2078]
[1761923282616,2.85239552,3861.8,3860.9,3.2078]
[1761923282823,0.1397,3862.6,3862.3,0.46637]
[1761923283040,0.025,3864.7,3862.7,3.0681]
[1761923283328,0.025,3864.7,3862.4,9.857]
[1761923283329,0.025,3864.7,3863.0,11.65707]
[1761923283524,0.025,3864.7,3864.6,3.2078]
[1761923283732,0.025,3864.7,3864.6,13.0728]
[1761923284122,0.02709931,3864.7,3864.6,13.0761485]
[1761923284425,0.26539931,3864.7,3864.6,3.2111485]
[1761923286324,0.2383,3863.9,3863.8,13.0698]
[1761923286919,0.2383,3863.9,3863.8,9.862]
[1761923287322,0.2383,3863.1,3862.6,3.2078]
[1761923287521,0.1397,3863.2,3862.6,3.21044419]
[1761923287714,0.1397,3863.2,3863.0,3.2078]
[1761923288119,0.1397,3863.2,3862.6,0.00264419]
[1761923288723,0.2383,3862.7,3862.6,0.00264419]
[1761923289438,0.1397,3863.2,3862.6,0.00264419]
[1761923289734,0.3081,3862.7,3862.6,0.00264419]
[1761923290521,0.3155,3862.2,3862.1,3.2078]
[1761923290727,0.3155,3862.2,3861.6,3.2078]
[1761923291432,0.3155,3862.2,3861.6,3.20975701]
[1761923291733,0.3155,3861.7,3861.6,3.20975701]
[1761923291933,0.31795399,3861.7,3861.6,0.00195701]
[1761923292734,3.52575399,3861.7,3861.6,0.00195701]
[1761923292931,0.3155,3861.0,3860.9,0.44657043]
[1761923293833,0.1958,3861.6,3860.9,0.44980017]
[1761923294335,0.1958,3861.6,3861.2,3.2078]
[1761923295631,0.3155,3861.3,3861.2,3.2078]
[1761923295832,0.1958,3862.4,3861.2,3.2078]
[1761923296135,0.1958,3862.4,3862.3,3.2078]
[1761923297036,0.19766134,3862.4,3862.3,3.2078]
[1761923300132,0.1958,3862.4,3862.3,3.2078]
[1761923300330,0.025,3864.7,3863.1,0.46628]
[1761923300535,3.2328,3864.7,3863.1,3.2078]
[1761923300928,3.2078,3864.5,3863.1,3.2078]
[1761923301128,0.025,3864.7,3863.2,0.46626]
[1761923301340,0.51409534,3864.0,3863.9,3.2078]
[1761923301527,0.51409534,3864.0,3863.9,3.20985387]
[1761923301731,0.19859534,3864.0,3863.9,3.20985387]
[1761923305242,0.1958,3864.8,3864.2,0.46613]
[1761923305539,0.1958,3864.8,3864.7,3.2078]
[1761923305747,0.2281,3865.4,3864.8,0.46607]
[1761923305938,0.2281,3865.4,3865.3,3.2078]
[1761923306245,0.2281,3865.4,3865.3,13.2878]
[1761923306436,0.23092667,3865.4,3865.3,13.2878]
[1761923309257,0.2281,3866.1,3865.3,13.2878]
[1761923309544,0.2281,3866.1,3866.0,3.2078]
[1761923309745,0.2281,3866.1,3866.0,13.2928]
[1761923310146,0.23106962,3866.1,3866.0,13.2928]
[1761923310546,0.23106962,3866.1,3866.0,13.49734229]
[1761923310745,0.23106962,3866.1,3866.0,13.48934229]
[1761923310945,0.23106962,3866.1,3866.0,13.2848]
[1761923311447,0.00296962,3866.1,3866.0,13.2848]
[1761923311649,0.2281,3866.8,3866.7,0.46584]
[1761923311854,0.2281,3867.5,3867.3,0.46577]
[1761923312148,0.2281,3867.5,3867.4,13.3098]
[1761923312343,0.2281,3867.5,3867.4,13.3078]
[1761923312545,0.23109763,3867.5,3867.4,13.3100911]
[1761923312939,0.23109763,3867.5,3867.4,13.7758511]
[1761923313445,0.23109763,3867.5,3867.4,13.3100911]
[1761923313947,0.23109763,3867.5,3867.4,13.7758511]
[1761923314349,0.23109763,3867.5,3867.4,13.3100911]
[1761923315948,0.23109763,3867.5,3867.4,13.7758411]
[1761923317943,0.2281,3868.9,3867.5,1.16432]
[1761923318147,0.2281,3868.9,3868.8,3.2078]
[1761923318354,0.2281,3868.9,3868.8,13.2488]
[1761923319152,0.23116179,3868.9,3868.8,13.2488]
[1761923319451,0.23116179,3868.9,3868.8,13.2388]
[1761923320545,0.23116179,3868.9,3868.8,3.2078]
[1761923320848,0.59406179,3868.9,3868.8,13.2358]
[1761923321937,0.23116179,3868.9,3868.8,13.2358]
[1761923323747,0.2281,3869.6,3868.8,13.2358]
[1761923323957,0.2281,3869.6,3868.8,10.028]
[1761923323958,0.2243,3868.9,3868.8,10.028]
[1761923324155,0.2243,3868.9,3868.8,13.2358]
[1761923324344,0.2243,3868.9,3868.8,13.44159606]
[1761923324853,0.22626555,3868.9,3868.8,13.44159606]
[1761923325049,0.22626555,3868.9,3868.8,13.90716606]
[1761923325251,0.22626555,3868.9,3868.8,13.44159606]
[1761923325746,0.2281,3869.6,3868.8,13.44159606]
[1761923326057,0.2281,3869.6,3869.5,3.2078]
[1761923326350,0.2281,3869.6,3869.5,13.1798]
[1761923326742,0.23112031,3869.6,3869.5,13.1798]
[1761923327645,0.23112031,3869.6,3869.5,3.2078]
[1761923327951,0.23112031,3869.6,3869.5,13.1778]
[1761923329955,0.23112031,3869.6,3868.1,12.416]
[1761923329956,0.59402031,3869.6,3869.1,3.2078]
[1761923330149,0.3629,3869.2,3869.1,3.2078]
[1761923330454,0.23112031,3869.6,3869.1,6.2548]
[1761923330749,0.59402031,3869.6,3869.5,3.2078]
[1761923330948,0.59402031,3869.6,3869.5,9.3418]
[1761923332852,0.5872,3868.8,3868.7,3.2078]
[1761923333052,0.5872,3868.8,3868.7,12.6308]
[1761923333251,0.2243,3868.8,3868.7,12.6308]
[1761923333548,0.2243,3868.8,3868.7,12.8411671]
[1761923334445,0.5872,3868.8,3868.7,3.2078]
[1761923336356,0.3629,3868.3,3868.2,3.2078]
[1761923336557,0.3629,3868.3,3868.2,13.1008]
[1761923336759,0.3629,3868.3,3868.2,13.1078]
[1761923337465,0.3629,3868.3,3868.2,3.2078]
[1761923338455,0.3629,3868.3,3867.4,0.0022911]
[1761923338661,0.2243,3868.2,3867.7,3.2078]
[1761923339163,0.5872,3868.2,3868.1,3.2078]
[1761923340759,0.2243,3868.2,3868.1,13.0778]
[1761923341057,0.2243,3868.8,3868.1,13.0778]
[1761923341058,0.2243,3868.8,3868.1,13.54345]
[1761923341256,0.2243,3868.8,3868.7,3.2078]
[1761923341561,3.43892031,3869.6,3868.7,13.0728]
[1761923341759,3.43892031,3869.6,3869.1,3.2078]
[1761923341760,0.56603604,3869.5,3869.1,3.2078]
[1761923341958,0.56603604,3869.4,3869.1,3.2078]
[1761923342266,0.23112031,3869.6,3869.1,3.2078]
[1761923342453,0.23112031,3869.6,3869.5,3.2078]
[1761923343158,0.23112031,3869.6,3869.3,9.86]
[1761923343860,0.3629,3869.4,3869.3,9.86]
[1761923345265,0.5872,3868.8,3868.7,3.2078]
[1761923345655,1.15335263,3868.8,3868.7,3.2078]
[1761923345966,0.3629,3868.4,3868.3,7.3338]
[1761923346261,0.2243,3868.2,3867.5,3.2078]
[1761923346461,0.2243,3868.2,3867.6,8.604]
[1761923346661,0.2243,3868.2,3867.9,3.2078]
[1761923346860,0.2243,3868.2,3867.6,8.81250292]
[1761923347057,0.2243,3867.6,3867.4,0.0022911]
[1761923347260,0.2243,3867.6,3867.4,7.6232911]
[1761923347558,0.2243,3867.6,3867.5,3.2078]
[1761923347958,0.2243,3868.8,3868.0,3.2078]
[1761923348160,0.2243,3868.8,3868.7,3.2078]
[1761923348362,0.2243,3868.8,3868.7,13.2828]
[1761923348565,0.2243,3868.8,3868.7,21.2828]
[1761923352969,0.00302031,3869.6,3869.0,0.46553]
[1761923353174,0.00302031,3869.6,3869.3,4.12681055]
[1761923353369,0.00302031,3869.6,3869.3,14.15981055]
[1761923354065,0.00302031,3869.6,3869.3,13.2408]
[1761923355174,2.80094047,3873.4,3872.0,3.2078]
[1761923355371,0.025,3874.7,3870.7,11.6332]
[1761923355372,0.2637,3874.2,3873.3,3.2078]
[1761923355567,0.2637,3874.2,3874.1,3.2078]
[1761923355768,0.025,3874.7,3874.1,15.44446899]
[1761923355962,0.025,3874.7,3874.5,3.2078]
[1761923356175,0.02697333,3874.7,3874.6,11.316]
[1761923356476,0.2637,3874.8,3874.6,11.316]
[1761923356870,0.11851195,3874.8,3874.6,12.00188252]
[1761923357168,0.2637,3876.0,3874.6,0.91866899]
[1761923357367,0.4393,3875.0,3874.9,3.2078]
[1761923357566,0.4393,3875.0,3874.9,10.2738]
[1761923357764,0.26654906,3875.4,3874.9,10.2738]
[1761923357976,0.70584906,3875.4,3875.3,3.2078]
[1761923358676,0.26654906,3875.4,3875.3,3.2078]
[1761923359078,0.26654906,3875.4,3875.3,14.5278]
[1761923359370,0.26654906,3875.4,3875.3,14.5258]
[1761923359768,0.95254906,3875.4,3875.3,14.5208]
[1761923360170,0.26654906,3875.4,3875.3,14.5208]
[1761923360373,0.26654906,3875.4,3875.3,3.2078]
[1761923360580,0.95254906,3875.4,3875.3,3.2078]
[1761923361072,0.686,3875.2,3875.1,11.298]
[1761923361263,0.26654906,3875.4,3875.1,11.298]
[1761923362177,0.26654906,3875.4,3875.0,3.2078]
[1761923362570,0.26654906,3875.4,3874.5,0.00222944]
[1761923362571,0.686,3875.1,3874.6,3.2078]
[1761923362871,0.686,3874.6,3874.5,0.00222944]
[1761923364467,0.26654906,3875.4,3874.5,3.21002944]
[1761923365072,3.2078,3875.3,3874.5,3.21002944]
[1761923365270,0.686,3874.6,3874.5,0.00222944]
[1761923365576,0.686,3874.2,3874.1,3.2078]
[1761923366280,0.3791,3873.8,3873.6,14.4368]
[1761923366576,0.3791,3873.8,3873.6,14.43863721]
[1761923367178,0.3791,3873.8,3873.7,11.202]
[1761923367780,0.3791,3873.8,3873.6,3.20963721]
[1761923369880,0.26654906,3875.4,3873.7,11.177]
[1761923370079,0.26654906,3875.4,3875.1,3.2078]
[1761923372782,0.26654906,3875.4,3875.1,3.1828]
[1761923373377,4.01913387,3876.1,3875.1,3.1828]
[1761923373579,1.38595524,3876.1,3876.0,3.2078]
[1761923373787,1.38595524,3876.1,3876.0,14.3968]
[1761923374183,0.3791,3876.6,3876.0,14.3968]
[1761923374492,0.38238083,3876.6,3876.5,3.2078]
[1761923374681,0.3791,3878.0,3876.5,11.2099081]
[1761923374991,0.3791,3878.0,3877.0,3.2078]
[1761923375292,0.3791,3878.0,3877.0,3.415686]
[1761923375687,0.3791,3878.0,3877.0,3.2078]
[1761923375888,0.38007246,3877.3,3877.1,11.186]
[1761923376087,0.38007246,3877.3,3877.0,3.2078]
[1761923376286,0.38007246,3877.3,3877.1,11.174]
[1761923376895,0.38007246,3877.3,3877.0,3.2078]
[1761923377193,0.38007246,3877.3,3877.1,11.168]
[1761923377488,0.38007246,3877.3,3877.0,3.2078]
[1761923377788,0.686,3877.1,3877.0,3.2078]
[1761923377988,0.686,3877.1,3877.0,7.4328]
[1761923378186,0.38007246,3877.3,3877.0,3.2078]
[1761923378484,0.38007246,3877.3,3877.1,10.958]
[1761923378686,0.38007246,3877.3,3877.0,3.10499361]
[1761923378880,0.38007246,3877.3,3877.1,3.2078]
[1761923379079,0.38007246,3877.3,3877.2,11.184]
[1761923379590,0.38007246,3877.3,3877.2,11.194]
[1761923379786,0.38007246,3877.3,3877.1,3.2078]
[1761923379787,0.7263,3877.2,3877.1,3.2078]
[1761923380199,0.38007246,3877.3,3877.1,3.2078]
[1761923380597,0.38007246,3877.3,3876.5,0.0021081]
[1761923380598,0.7263,3876.6,3876.5,0.0021081]
[1761923380995,0.38007246,3877.3,3876.5,0.0021081]
[1761923381293,0.7263,3876.6,3876.5,0.0021081]
[1761923381897,3.2078,3877.2,3876.5,0.0021081]
[1761923383097,0.38007246,3877.3,3876.5,0.0021081]
[1761923383498,0.7263,3876.6,3876.5,0.0021081]
[1761923384599,0.38007246,3877.3,3876.5,11.1661081]
[1761923384800,0.38007246,3877.3,3876.9,3.2078]
[1761923385496,0.38007246,3877.3,3876.5,11.1661081]
[1761923385802,0.7263,3876.6,3876.5,0.0021081]
[1761923385991,0.7263,3876.6,3876.5,8.1e-06]
[1761923386302,1.1709,3876.6,3876.5,8.1e-06]
[1761923386797,0.4446,3876.6,3876.5,8.1e-06]
[1761923387203,1.1709,3876.6,3876.5,8.1e-06]
[1761923387708,0.4446,3876.6,3876.5,8.1e-06]
[1761923388100,1.1709,3876.6,3876.5,8.1e-06]
[1761923388405,0.4446,3875.9,3875.7,0.68317922]
[1761923388706,0.4446,3875.9,3875.6,11.80217922]
[1761923389104,0.4446,3875.9,3875.6,11.119]
[1761923389302,0.4446,3875.9,3875.7,0.68317922]
[1761923389504,0.4446,3875.9,3875.8,0.68317922]
[1761923389707,0.4446,3875.9,3875.7,0.68595594]
[1761923390102,0.4446,3875.9,3875.8,11.80117922]
[1761923390309,0.4446,3875.9,3875.8,11.118]
[1761923390701,0.4446,3875.9,3875.8,12.02889104]
[1761923390901,0.4446,3875.9,3875.8,11.118]
[1761923391109,0.4446,3875.9,3875.8,11.106]
[1761923391406,0.34484564,3875.9,3875.8,11.097]
[1761923391705,0.34484564,3875.9,3875.8,12.01189104]
[1761923391905,0.34484564,3875.9,3875.8,12.47951583]
[1761923392105,0.4446,3876.6,3875.8,11.101]
[1761923392413,0.4446,3876.6,3876.5,4.57386126]
[1761923392612,0.4446,3876.6,3876.5,15.66386126]
[1761923393405,0.4446,3876.6,3876.5,14.2978]
[1761923393809,0.4446,3876.6,3876.5,14.2748]
[1761923394109,0.4446,3876.6,3876.5,3.2078]
[1761923394415,0.4446,3876.6,3876.5,4.11873931]
[1761923394704,1.1709,3876.6,3876.4,0.68329524]
[1761923394910,0.7263,3876.5,3876.2,0.68329524]
[1761923395204,0.4446,3876.6,3876.4,11.055]
[1761923395406,1.1709,3876.6,3876.5,11.054]
[1761923395598,0.4446,3876.6,3876.2,11.054]
[1761923395802,0.4446,3876.6,3876.5,3.2078]
[1761923396204,0.4446,3876.6,3876.5,4.11873931]
[1761923396512,0.4446,3876.6,3876.5,14.2558]
[1761923396705,0.4446,3876.6,3876.5,14.72043]
[1761923397008,0.4446,3876.6,3876.5,15.62148685]
[1761923397401,0.4446,3876.6,3876.5,3.2078]
[1761923397603,0.4446,3876.6,3876.5,4.57631244]
[1761923397805,0.4446,3876.6,3876.5,15.60731244]
[1761923398314,0.4446,3876.6,3876.5,14.2388]
[1761923399701,0.4446,3876.6,3876.5,3.2078]
[1761923399901,0.4446,3876.6,3876.5,14.2028]
[1761923400310,1.1709,3876.6,3876.5,3.2078]
[1761923400504,0.4446,3876.6,3876.5,15.5656131]
[1761923400707,0.4446,3876.6,3876.5,14.1938]
[1761923401511,0.4446,3876.6,3876.5,16.02560755]
[1761923401713,0.4446,3876.6,3876.5,3.2078]
[1761923401905,0.4446,3876.6,3876.5,14.1818]
[1761923402107,0.4446,3876.6,3876.5,16.01060755]
[1761923402306,0.4446,3876.6,3876.5,14.1818]
[1761923403711,0.38007246,3877.3,3876.5,15.34338]
[1761923403909,0.38007246,3877.3,3877.2,3.2078]
[1761923404105,0.38007246,3877.3,3877.2,14.1598]
[1761923404303,0.3791,3877.3,3877.2,14.1598]
[1761923405302,0.3791,3877.3,3877.2,3.2078]
[1761923405504,0.3812081,3877.3,3877.2,3.2078]
[1761923405708,0.3812081,3877.3,3877.2,14.1398]
[1761923406112,0.3791,3878.0,3877.5,0.4645]
[1761923406308,0.3791,3878.0,3877.9,3.2078]
[1761923406512,0.3791,3878.0,3877.9,14.1258]
[1761923407207,0.3791,3878.0,3877.9,15.9533307]
[1761923407404,0.3791,3878.0,3877.9,14.31346904]
[1761923408002,0.4446,3878.7,3877.9,14.31346904]
[1761923408211,0.4446,3878.0,3877.9,0.18766904]
[1761923408410,0.4446,3878.0,3877.9,15.9253307]
[1761923408615,0.4446,3878.7,3877.9,15.9253307]
[1761923408803,0.4446,3878.7,3878.6,4.57532273]
[1761923409007,0.4446,3878.7,3878.6,15.46034704]
[1761923409409,0.4256,3878.7,3878.6,14.09282431]
[1761923410226,0.4256,3878.7,3878.6,3.20982431]
[1761923410511,0.4256,3878.7,3878.6,14.07482431]
[1761923410712,0.4256,3878.7,3878.6,15.89818795]
[1761923411308,0.4256,3878.7,3878.6,14.07482431]
[1761923412019,0.4256,3878.7,3878.6,14.53919431]
[1761923412319,0.4256,3878.7,3878.6,14.07482431]
[1761923412613,0.4446,3880.8,3878.6,14.07482431]
[1761923412614,3.6524,3880.8,3878.6,26.44982431]
[1761923412811,0.4256,3880.1,3879.8,3.88992666]
[1761923413017,0.4256,3880.1,3879.9,10.918]
[1761923413205,0.4256,3882.2,3881.2,3.2078]
[1761923413408,0.4256,3882.2,3881.3,10.56552905]
[1761923413409,0.4256,3881.6,3881.3,10.56552905]
[1761923413614,0.4256,3881.6,3881.5,0.67983711]
[1761923413806,0.4256,3881.6,3881.5,0.00322195]
[1761923414117,1.0937,3881.6,3881.5,0.00322195]
[1761923414322,3.2078,3881.8,3881.5,0.00322195]
[1761923414526,0.4256,3882.2,3881.7,0.67983711]
[1761923414815,3.6334,3882.9,3881.9,3.2078]
[1761923415014,3.6334,3882.4,3882.0,11.182]
[1761923415215,3.6334,3882.4,3881.7,0.67983711]
[1761923415420,0.4256,3882.4,3882.1,11.182]
[1761923415614,0.4256,3882.4,3882.2,11.177]
[1761923416320,0.4256,3881.6,3881.5,3.21102195]
[1761923416623,0.4256,3881.6,3881.5,11.17522195]
[1761923417522,0.4256,3881.6,3881.5,14.37802195]
[1761923417722,0.4256,3881.6,3881.5,0.00322195]
[1761923417922,0.4256,3881.6,3881.5,11.16022195]
[1761923418122,4.3015,3881.6,3881.5,0.00322195]
[1761923418518,1.0937,3881.6,3881.5,0.00322195]
[1761923418712,4.3015,3881.6,3881.5,0.00322195]
[1761923418918,0.4256,3881.6,3881.5,0.00322195]
[1761923419128,4.5455,3881.6,3881.5,0.00322195]
[1761923419513,0.5385,3880.8,3880.5,11.135]
[1761923419813,0.5385,3880.0,3879.1,11.141]
[1761923420013,0.5385,3880.0,3879.4,3.2078]
[1761923420225,0.5385,3880.0,3879.5,3.2078]
[1761923420522,4.1199,3879.6,3879.5,0.00285864]
[1761923421219,3.74952195,3880.0,3879.5,0.00285864]
[1761923421521,0.54172195,3880.0,3879.5,0.00285864]
[1761923421722,3.74952195,3880.0,3879.5,0.00285864]
[1761923422022,0.54172195,3880.0,3879.5,0.00285864]
[1761923422819,0.9121,3879.6,3879.5,0.00285864]
[1761923423220,0.54172195,3880.0,3879.5,0.00285864]
[1761923423922,3.74952195,3880.0,3879.5,0.00285864]
[1761923424319,0.54172195,3880.0,3879.5,0.00285864]
[1761923424924,0.00322195,3880.0,3879.7,3.2078]
[1761923425127,0.00322195,3880.0,3879.7,3.88763711]
[1761923425516,0.9121,3879.9,3879.7,3.88763711]
[1761923425721,0.9121,3879.9,3879.5,0.68269575]
[1761923426021,0.9121,3879.6,3879.5,0.00285864]
[1761923426221,0.5385,3879.2,3878.5,3.2078]
[1761923426429,3.2078,3879.1,3878.5,3.2078]
[1761923426929,0.5385,3879.2,3878.5,3.2078]
[1761923427130,0.5385,3879.2,3878.5,14.28206132]
[1761923428131,0.5385,3879.2,3878.6,11.056]
[1761923428327,0.5385,3879.2,3878.5,3.21106132]
[1761923428525,0.9121,3878.6,3878.5,3.21106132]
[1761923428728,3.7463,3879.2,3878.5,0.00326132]
[1761923429024,0.54172195,3880.0,3879.1,3.2078]
[1761923429226,0.54172195,3880.0,3879.2,11.059]
[1761923429926,0.54172195,3880.0,3879.2,11.52331]
[1761923430128,0.54172195,3880.0,3879.2,11.059]
[1761923430432,0.54172195,3880.0,3879.3,11.06]
[1761923430832,0.54172195,3880.0,3879.7,3.2078]
[1761923431329,0.54172195,3880.0,3879.5,0.67983711]
[1761923431732,0.54172195,3880.0,3879.6,11.03]
[1761923432032,0.54172195,3880.0,3879.5,11.017]
[1761923432734,0.9121,3879.6,3879.2,0.67983711]
[1761923432926,0.5385,3879.2,3879.0,0.67983711]
[1761923433132,0.5385,3879.2,3878.9,14.2078]
[1761923433332,0.5385,3879.2,3878.9,14.88763711]
[1761923433828,0.5385,3879.2,3879.0,10.996]
[1761923434234,0.5385,3879.2,3879.0,11.67583711]
[1761923434432,0.5385,3879.2,3879.1,0.90950222]
[1761923435128,0.54172195,3880.0,3879.0,12.36025333]
[1761923435329,0.54172195,3880.0,3879.5,0.68238761]
[1761923435530,0.54172195,3880.0,3879.6,10.986]
[1761923435736,0.54172195,3880.0,3879.7,3.2078]
[1761923436035,0.5385,3880.8,3879.8,13.52561761]
[1761923436332,1.4506,3880.8,3880.7,0.68254441]
[1761923436534,0.9121,3880.7,3880.5,11.069]
[1761923436848,0.9121,3880.1,3880.0,0.68271407]
[1761923437135,0.9121,3880.1,3879.7,0.90985014]
[1761923437136,0.9121,3879.5,3878.8,0.91071397]
[1761923437338,3.2078,3879.8,3878.9,11.97571397]
[1761923437733,0.5385,3880.0,3879.3,0.91071397]
[1761923437934,3.2078,3879.4,3879.1,0.91071397]
[1761923438136,0.5385,3879.2,3878.8,0.91071397]
[1761923438341,4.1199,3878.9,3878.6,0.91071397]
[1761923438532,4.1199,3878.9,3878.5,11.06126132]
[1761923438727,4.1199,3878.9,3878.5,0.00326132]
[1761923438935,0.9121,3878.6,3878.5,0.00326132]
[1761923440435,0.8998,3877.7,3877.6,3.2078]
[1761923440639,0.5168,3877.6,3877.3,0.91071397]
[1761923440837,0.5168,3877.6,3877.2,0.91071397]
[1761923441037,0.5168,3877.6,3877.1,4.11851397]
[1761923441242,4.1076,3877.2,3876.9,0.91071397]
[1761923441442,0.8998,3877.0,3876.9,0.00316406]
[1761923441843,0.00183306,3877.2,3876.9,0.00316406]
[1761923442043,0.8998,3877.0,3876.9,0.00316406]
[1761923442736,0.8998,3876.5,3876.2,11.007]
[1761923442939,0.8998,3876.5,3875.9,3.2078]
[1761923443130,1.4166,3876.0,3875.9,3.2078]
[1761923443331,1.4166,3876.0,3875.2,3.2078]
[1761923443745,0.5168,3876.0,3875.6,3.2078]
[1761923444042,3.2078,3876.5,3875.6,3.2078]
[1761923444239,0.5168,3876.0,3875.2,3.20963109]
[1761923444435,0.5168,3876.0,3875.3,0.46478]
[1761923444648,0.5168,3876.0,3875.4,10.988]
[1761923445242,0.5168,3876.0,3875.6,3.2078]
[1761923445541,3.2078,3876.5,3875.6,3.2078]
[1761923446740,3.2078,3876.5,3875.7,0.46472]
[1761923446942,0.5168,3876.8,3876.0,3.67249]
[1761923447141,0.5168,3876.8,3876.0,3.2078]
[1761923447339,0.5168,3876.8,3876.0,3.67248]
[1761923447636,0.5168,3876.8,3876.0,3.2078]
[1761923447837,0.5168,3876.8,3876.0,3.67248]
[1761923448034,0.5168,3876.8,3876.0,3.2078]
[1761923449045,0.5168,3876.8,3876.1,10.931]
[1761923449545,0.5168,3876.8,3876.1,10.932]
[1761923450645,0.5168,3876.8,3876.2,0.46466]
[1761923450845,0.00183306,3877.2,3876.5,3.2078]
[1761923451050,0.00183306,3877.2,3876.7,0.46459]
[1761923451248,0.00183306,3877.2,3876.1,10.932]
[1761923451249,0.00183306,3877.2,3877.1,0.8716]
[1761923451441,0.00183306,3877.2,3877.1,10.909]
[1761923452548,0.00183306,3877.2,3877.1,10.905]
[1761923452743,3.20963306,3877.2,3876.3,3.2078]
[1761923452950,3.20963306,3877.2,3876.4,10.884]
[1761923453246,3.20963306,3877.2,3876.5,10.883]
[1761923453743,3.20963306,3877.2,3875.9,0.91071397]
[1761923453744,3.2078,3876.8,3875.9,3.2078]
[1761923453948,3.20963306,3877.2,3875.9,3.2078]
[1761923454152,3.2078,3876.8,3876.0,10.875]
[1761923454759,3.2078,3876.2,3876.0,10.875]
[1761923454941,3.2078,3876.3,3875.4,3.2078]
[1761923455440,3.2078,3876.3,3875.5,10.855]
[1761923455646,0.5168,3876.6,3875.5,10.855]
[1761923455841,3.2078,3876.3,3875.6,10.852]